bitfinex/quotes_BTCUSD_20250620
["timestamp","ask_amount","ask_price","bid_price","bid_amount"]
[1750390309926,5.16913238,104790.0,104780.0,0.2712591]
[1750390310134,5.31402976,104790.0,104780.0,0.2712591]
[1750390310483,5.64490383,104790.0,104780.0,0.2712591]
[1750390311981,5.65444636,104790.0,104780.0,0.2712591]
[1750390313574,5.46998907,104790.0,104780.0,0.2712591]
[1750390313783,5.66398907,104790.0,104780.0,0.2712591]
[1750390316412,5.86438977,104790.0,104780.0,0.2712591]
[1750390316627,5.66398907,104790.0,104780.0,0.2712591]
[1750390317071,5.63536139,104790.0,104780.0,0.2712591]
[1750390317287,5.64490392,104790.0,104780.0,0.2712591]
[1750390318141,5.65444654,104790.0,104780.0,0.2712591]
[1750390320735,5.66398925,104790.0,104780.0,0.2712591]
[1750390321601,5.64486392,104790.0,104780.0,0.2712591]
[1750390321814,5.65440654,104790.0,104780.0,0.2712591]
[1750390322933,5.66394934,104790.0,104780.0,0.2712591]
[1750390323158,5.65440654,104790.0,104780.0,0.2712591]
[1750390324960,5.64486392,104790.0,104780.0,0.2712591]
[1750390325158,5.65440663,104790.0,104780.0,0.2712591]
[1750390326572,5.84526453,104790.0,104780.0,0.2712591]
[1750390326769,5.85480733,104790.0,104780.0,0.2712591]
[1750390327574,5.66394943,104790.0,104780.0,0.2712591]
[1750390327770,5.65440663,104790.0,104780.0,0.2712591]
[1750390329689,5.66394943,104790.0,104780.0,0.2712591]
[1750390330416,5.65440663,104790.0,104780.0,0.2712591]
[1750390330835,5.66394925,104790.0,104780.0,0.2712591]
[1750390332302,5.64486392,104790.0,104780.0,0.2712591]
[1750390334112,5.63532139,104790.0,104780.0,0.2712591]
[1750390334326,5.64486383,104790.0,104780.0,0.2712591]
[1750390334970,5.63532139,104790.0,104780.0,0.2712591]
[1750390335186,5.64486392,104790.0,104780.0,0.2712591]
[1750390336274,5.44136139,104790.0,104780.0,0.2712591]
[1750390336501,5.64486383,104790.0,104780.0,0.2712591]
[1750390337781,5.64486383,104790.0,104780.0,0.27125911]
[1750390339494,5.14050507,104790.0,104780.0,0.27125911]
[1750390339699,5.29486507,104790.0,104780.0,0.27125911]
[1750390339917,5.30440714,104790.0,104780.0,0.27125911]
[1750390340129,5.14050507,104790.0,104780.0,0.27125911]
[1750390340344,5.10094507,104790.0,104780.0,0.27125911]
[1750390340555,5.30440714,104790.0,104780.0,0.27125911]
[1750390340761,5.15004714,104790.0,104780.0,0.27125911]
[1750390340970,5.30440714,104790.0,104780.0,0.27125911]
[1750390342059,5.29486507,104790.0,104780.0,0.27125911]
[1750390342271,5.30440714,104790.0,104780.0,0.27125911]
[1750390343135,5.31394939,104790.0,104780.0,0.27125911]
[1750390343280,5.30440714,104790.0,104780.0,0.27125911]
[1750390344089,5.31394939,104790.0,104780.0,0.27125911]
[1750390346597,5.30440714,104790.0,104780.0,0.27125911]
[1750390347400,5.29486507,104790.0,104780.0,0.27125911]
[1750390352506,5.30440714,104790.0,104780.0,0.27125911]
[1750390353788,5.64482346,104790.0,104780.0,0.27125911]
[1750390354007,5.63528121,104790.0,104780.0,0.27125911]
[1750390354222,5.64482346,104790.0,104780.0,0.27125911]
[1750390354463,5.64482337,104790.0,104780.0,0.27125911]
[1750390356667,1.38075237,104790.0,104780.0,0.27125911]
[1750390356889,1.39029462,104790.0,104780.0,0.27125911]
[1750390357098,1.38075237,104790.0,104780.0,0.27125911]
[1750390357645,1.0498783,104790.0,104780.0,0.27125911]
[1750390360646,1.06896299,104790.0,104780.0,0.27125911]
[1750390360871,1.39983706,104790.0,104780.0,0.27125911]
[1750390361083,1.69551797,104790.0,104780.0,0.2700792]
[1750390361302,1.69551797,104790.0,104780.0,0.27007865]
[1750390362798,1.48557438,104790.0,104780.0,0.27007865]
[1750390363018,1.49511709,104790.0,104780.0,0.27007865]
[1750390363227,1.49511709,104790.0,104780.0,0.27126865]
[1750390365521,1.49311709,104790.0,104780.0,0.27126865]
[1750390365983,1.49411709,104790.0,104780.0,0.27126865]
[1750390366542,1.48457438,104790.0,104780.0,0.27126865]
[1750390366989,1.49411709,104790.0,104780.0,0.27126865]
[1750390367211,1.49011709,104790.0,104780.0,0.27126865]
[1750390367436,1.49211709,104790.0,104780.0,0.27126865]
[1750390368402,1.50165989,104790.0,104780.0,0.27126865]
[1750390369024,1.49211709,104790.0,104780.0,0.27126865]
[1750390369468,1.50165989,104790.0,104780.0,0.27126865]
[1750390370413,1.69251779,104790.0,104780.0,0.27126865]
[1750390370614,1.68297554,104790.0,104780.0,0.24144889]
[1750390370824,1.69251843,104790.0,104780.0,0.25099224]
[1750390371034,1.69251843,104790.0,104780.0,0.26053549]
[1750390371243,1.68297599,104790.0,104780.0,0.24144898]
[1750390371451,5.93750437,104790.0,104780.0,0.24144898]
[1750390371674,5.92796166,104790.0,104780.0,0.03148553]
[1750390371868,5.91841886,104790.0,104780.0,0.22236165]
[1750390372292,5.91841886,104790.0,104780.0,0.23190545]
[1750390372503,5.91841886,104790.0,104780.0,0.24144907]
[1750390372698,5.91841886,104790.0,104780.0,0.2509926]
[1750390375211,5.90887597,104790.0,104780.0,0.24144907]
[1750390376573,5.90887597,104790.0,104780.0,0.04102933]
[1750390376785,5.90887597,104790.0,104780.0,0.03148553]
[1750390377241,5.90887597,104790.0,104780.0,0.00038553]
[1750390377850,5.75692461,104790.0,104780.0,0.00038553]
[1750390378071,5.75692461,104790.0,104780.0,0.23290545]
[1750390378517,5.74887597,104790.0,104780.0,0.23290545]
[1750390379094,5.77815227,104790.0,104780.0,0.23290545]
[1750390382774,5.77815227,104790.0,104780.0,0.03248553]
[1750390383605,5.80020451,104790.0,104780.0,0.03248553]
[1750390387156,5.80020451,104790.0,104780.0,0.22336165]
[1750390388521,5.80020451,104790.0,104780.0,0.23290545]
[1750390391385,5.80020451,104790.0,104780.0,0.03248553]
[1750390394373,0.2195271,104770.0,104760.0,0.20045777]
[1750390394596,0.87173126,104770.0,104760.0,0.20167786]
[1750390394852,1.055947,104770.0,104760.0,0.20167786]
[1750390395271,1.04640247,104770.0,104760.0,0.20167786]
[1750390395481,1.04640247,104770.0,104760.0,0.21122312]
[1750390395732,1.055947,104770.0,104760.0,0.2207682]
[1750390395971,1.22549126,104770.0,104760.0,0.2207682]
[1750390396190,1.22549126,104770.0,104760.0,0.23031319]
[1750390396401,1.23503588,104770.0,104760.0,0.23031319]
[1750390396820,1.23503588,104770.0,104760.0,0.23231319]
[1750390397045,1.23503588,104770.0,104760.0,0.23431319]
[1750390397254,1.04414155,104770.0,104760.0,0.23431319]
[1750390397466,1.04414155,104770.0,104760.0,0.26671319]
[1750390397898,1.23503588,104770.0,104760.0,0.26671319]
[1750390398553,1.04414155,104770.0,104760.0,0.26671319]
[1750390399637,1.23503588,104770.0,104760.0,0.24762312]
[1750390400120,1.23503588,104770.0,104760.0,0.25716829]
[1750390401360,1.23503588,104770.0,104760.0,0.24762312]
[1750390401961,1.23503588,104770.0,104760.0,0.25716829]
[1750390402199,1.23503588,104770.0,104760.0,0.26671337]
[1750390402468,1.24458059,104770.0,104760.0,0.26671337]
[1750390403798,1.24458059,104770.0,104760.0,0.25716829]
[1750390404419,1.23503633,104770.0,104760.0,0.25594829]
[1750390404626,1.2254918,104770.0,104760.0,0.24753312]
[1750390405680,0.56374366,104770.0,104760.0,0.24753312]
[1750390405884,1.2254918,104770.0,104760.0,0.24753312]
[1750390407975,0.56374366,104770.0,104760.0,0.24753312]
[1750390408191,1.2254918,104770.0,104760.0,0.25707811]
[1750390409246,1.2254918,104770.0,104760.0,0.24753312]
[1750390409455,1.2254918,104770.0,104760.0,0.25707829]
[1750390409906,0.88986109,104770.0,104760.0,0.26662328]
[1750390410180,0.55898702,104770.0,104760.0,0.26662328]
[1750390411302,0.54944249,104770.0,104760.0,0.26662328]
[1750390411514,0.55898702,104770.0,104760.0,0.26662328]
[1750390411952,0.71326702,104770.0,104760.0,0.26662328]
[1750390413930,1.04414109,104770.0,104760.0,0.26662328]
[1750390415145,0.71326702,104770.0,104760.0,0.26662328]
[1750390419063,1.04414109,104770.0,104760.0,0.26662328]
[1750390419978,0.7036824,104770.0,104760.0,0.26662328]
[1750390420183,0.34041814,104770.0,104760.0,0.26662328]
[1750390420395,0.53413814,104770.0,104760.0,0.26662328]
[1750390420604,0.54368249,104770.0,104760.0,0.26662328]
[1750390421544,0.5436824,104770.0,104760.0,0.26662328]
[1750390422471,0.53413814,104770.0,104760.0,0.26662328]
[1750390422690,0.5436824,104770.0,104760.0,0.26662328]
[1750390424124,0.55322684,104770.0,104760.0,0.26662328]
[1750390424351,0.5436824,104770.0,104760.0,0.26662328]
[1750390424570,0.55322684,104770.0,104760.0,0.26662328]
[1750390425501,0.55322675,104770.0,104760.0,0.26662328]
[1750390425904,0.33087407,104770.0,104760.0,0.26662328]
[1750390426121,0.50041814,104770.0,104760.0,0.26662328]
[1750390426767,0.34041814,104770.0,104760.0,0.26662328]
[1750390427183,0.8717308,104770.0,104760.0,0.23685786]
[1750390427408,0.200458,104760.0,104750.0,0.0158]
[1750390427616,4.80454822,104750.0,104740.0,0.0001]
[1750390427827,5.90794936,104750.0,104740.0,0.0001]
[1750390428037,5.57707529,104750.0,104740.0,0.0001]
[1750390428233,6.00321921,104750.0,104740.0,0.0001]
[1750390428447,6.01821921,104750.0,104740.0,0.0001]
[1750390428876,5.94584654,104750.0,104740.0,0.0001]
[1750390429291,5.9459364,104750.0,104740.0,0.0001]
[1750390429497,5.92303922,104750.0,104740.0,0.0001]
[1750390429700,5.92503922,104750.0,104740.0,0.0001]
[1750390430521,5.93003922,104750.0,104740.0,0.0001]
[1750390430726,6.02530907,104750.0,104740.0,0.0001]
[1750390431549,6.18530907,104750.0,104740.0,0.0001]
[1750390431959,6.09003922,104750.0,104740.0,0.0001]
[1750390432362,6.24431922,104750.0,104740.0,0.0001]
[1750390438197,0.54049627,104740.0,104730.0,0.0001]
[1750390438427,6.44866248,104740.0,104730.0,0.0001]
[1750390438648,6.11778841,104740.0,104730.0,0.0001]
[1750390438865,6.14648541,104740.0,104730.0,0.0001]
[1750390439089,6.23345537,104740.0,104730.0,0.0001]
[1750390439362,6.14848541,104740.0,104730.0,0.0001]
[1750390440028,6.47935948,104740.0,104730.0,0.0001]
[1750390440251,6.48235948,104740.0,104730.0,0.0001]
[1750390440469,6.15148541,104740.0,104730.0,0.0001]
[1750390440965,5.82189322,104740.0,104730.0,0.0001]
[1750390441662,5.80609322,104740.0,104730.0,0.0001]
[1750390442133,5.80609322,104740.0,104730.0,0.0315]
[1750390442134,5.59657322,104740.0,104730.0,0.0315]
[1750390442361,5.76159622,104740.0,104730.0,0.03269]
[1750390443041,5.85686607,104740.0,104730.0,0.03269]
[1750390443262,5.76159622,104740.0,104730.0,0.03269]
[1750390445007,5.76159622,104740.0,104730.0,0.03291555]
[1750390446488,4.61861817,104740.0,104730.0,0.24297923]
[1750390446697,5.35393654,104740.0,104730.0,0.24297923]
[1750390446896,5.19284527,104740.0,104730.0,0.25252741]
[1750390447128,5.19284527,104740.0,104730.0,0.26207531]
[1750390447316,4.99908527,104740.0,104730.0,0.27162312]
[1750390447547,5.19284527,104740.0,104730.0,0.26207476]
[1750390447751,5.00189626,104740.0,104730.0,0.26207476]
[1750390447982,5.19284527,104740.0,104730.0,0.27162248]
[1750390448808,4.99234881,104740.0,104730.0,0.27162248]
[1750390449010,5.00189607,104740.0,104730.0,0.27162248]
[1750390449225,5.19284508,104740.0,104730.0,0.25252695]
[1750390449427,5.01144342,104740.0,104730.0,0.26207476]
[1750390449637,5.00189607,104740.0,104730.0,0.27162248]
[1750390450045,5.00189535,104740.0,104730.0,0.27162248]
[1750390450462,4.99234827,104740.0,104730.0,0.27162248]
[1750390450673,5.00189535,104740.0,104730.0,0.27162248]
[1750390451755,4.99234827,104740.0,104730.0,0.27162248]
[1750390452801,5.00189544,104740.0,104730.0,0.27162248]
[1750390453260,5.0114427,104740.0,104730.0,0.27162248]
[1750390453694,5.02099005,104740.0,104730.0,0.26207476]
[1750390454773,5.02099087,104740.0,104730.0,0.26207476]
[1750390455284,5.01144342,104740.0,104730.0,0.26207476]
[1750390455707,5.01144342,104740.0,104730.0,0.27162248]
[1750390456664,5.21193988,104740.0,104730.0,0.27162248]
[1750390456869,5.02099087,104740.0,104730.0,0.27162248]
[1750390457086,4.79858827,104740.0,104730.0,0.27162248]
[1750390457296,5.00185544,104740.0,104730.0,0.27162248]
[1750390457502,5.0114027,104740.0,104730.0,0.27162248]
[1750390458124,5.21189988,104740.0,104730.0,0.26207476]
[1750390459079,5.20235298,104740.0,104730.0,0.25252695]
[1750390459295,5.19280581,104740.0,104730.0,0.25252695]
[1750390460131,5.19280581,104740.0,104730.0,0.25252699]
[1750390461319,5.19280581,104740.0,104730.0,0.2620748]
[1750390463808,5.00185562,104740.0,104730.0,0.27162252]
[1750390465411,4.99230845,104740.0,104730.0,0.27162252]
[1750390465622,5.00185562,104740.0,104730.0,0.27162252]
[1750390467201,5.01140288,104740.0,104730.0,0.27162252]
[1750390467416,5.00185562,104740.0,104730.0,0.27162252]
[1750390469746,5.01140288,104740.0,104730.0,0.27162252]
[1750390471005,5.34268929,104740.0,104730.0,0.27162252]
[1750390471838,5.35223664,104740.0,104730.0,0.27162252]
[1750390472256,5.54318638,104740.0,104730.0,0.2620748]
[1750390472467,5.53363939,104740.0,104730.0,0.2620748]
[1750390473719,5.53363939,104740.0,104730.0,0.25252699]
[1750390474141,5.33232666,104740.0,104730.0,0.25252699]
[1750390474754,5.33232666,104740.0,104730.0,0.252527]
[1750390475170,5.32277949,104740.0,104730.0,0.252527]
[1750390475608,5.32277949,104740.0,104730.0,0.26207472]
[1750390476048,5.66277949,104740.0,104730.0,0.26207472]
[1750390476703,5.46228303,104740.0,104730.0,0.26207472]
[1750390476916,5.66277949,104740.0,104730.0,0.26207472]
[1750390477340,5.66277949,104740.0,104730.0,0.252527]
[1750390478343,5.66277949,104740.0,104730.0,0.26207481]
[1750390478763,5.46228267,104740.0,104730.0,0.27162253]
[1750390480621,5.46228213,104740.0,104730.0,0.27162253]
[1750390480846,5.4718293,104740.0,104730.0,0.27162253]
[1750390482429,4.80902788,104740.0,104730.0,0.27162253]
[1750390482653,5.46228204,104740.0,104730.0,0.27162253]
[1750390483137,5.46228195,104740.0,104730.0,0.27162253]
[1750390484075,5.47182885,104740.0,104730.0,0.27162253]
[1750390484317,5.49476831,104740.0,104730.0,0.27162253]
[1750390484561,0.005,104740.0,104730.0,0.27162253]
[1750390484804,0.33640071,104740.0,104730.0,0.27162253]
[1750390486895,0.3362858,104740.0,104730.0,0.27162253]
[1750390487537,0.3362858,104740.0,104730.0,0.27162254]
[1750390494011,0.3342858,104740.0,104730.0,0.27162254]
[1750390494222,0.3312858,104740.0,104730.0,0.27162254]
[1750390494441,0.3312858,104740.0,104730.0,0.27262254]
[1750390495329,0.3312858,104740.0,104730.0,0.27362254]
[1750390508061,0.6712858,104740.0,104730.0,0.27362254]
[1750390508928,1.00262526,104740.0,104730.0,0.27362254]
[1750390518257,0.67131263,104740.0,104730.0,0.27362254]
[1750390520022,1.00262526,104740.0,104730.0,0.27362254]
[1750390531386,1.00262526,104740.0,104730.0,0.27362255]
[1750390538519,0.67131263,104740.0,104730.0,0.27362255]
[1750390543566,8.986e-05,104750.0,104740.0,0.21959025]
[1750390543783,8.986e-05,104750.0,104740.0,0.25148587]
[1750390544006,0.33140249,104750.0,104740.0,0.25148587]
[1750390544693,0.33140249,104750.0,104740.0,0.25148586]
[1750390545128,0.33240249,104750.0,104740.0,0.25148586]
[1750390548778,0.00108986,104750.0,104740.0,0.25148586]
[1750390549011,0.33240249,104750.0,104740.0,0.25148586]
[1750390551908,0.00108986,104750.0,104740.0,0.34676479]
[1750390552135,0.33240249,104750.0,104740.0,0.34676479]
[1750390552345,0.00108986,104750.0,104740.0,0.34676479]
[1750390554610,0.00108986,104750.0,104740.0,0.69261827]
[1750390555650,8.986e-05,104750.0,104740.0,1.0239309]
[1750390555863,8.986e-05,104750.0,104740.0,1.0249309]
[1750390557160,8.986e-05,104750.0,104740.0,1.0259309]
[1750390557376,8.986e-05,104750.0,104740.0,0.69461827]
[1750390557612,8.986e-05,104750.0,104740.0,0.69261827]
[1750390557855,8.986e-05,104750.0,104740.0,0.69761827]
[1750390558077,8.986e-05,104750.0,104740.0,1.0329309]
[1750390558514,8.986e-05,104750.0,104740.0,0.70161827]
[1750390560078,8.986e-05,104750.0,104740.0,0.39898664]
[1750390560288,8.986e-05,104750.0,104740.0,0.88445927]
[1750390561858,0.01593565,104750.0,104740.0,0.88445927]
[1750390562419,8.986e-05,104750.0,104740.0,0.88445927]
[1750390564459,8.986e-05,104750.0,104740.0,0.55314664]
[1750390564669,0.01588074,104750.0,104740.0,0.88445927]
[1750390564882,8.986e-05,104750.0,104740.0,0.88445927]
[1750390582757,8.986e-05,104750.0,104740.0,0.55314664]
[1750390582972,8.986e-05,104750.0,104740.0,0.88445927]
[1750390584074,8.986e-05,104750.0,104740.0,0.55314664]
[1750390584335,0.33131263,104760.0,104750.0,0.22579334]
[1750390584539,0.33131263,104760.0,104750.0,0.32129788]
[1750390585694,0.33131263,104760.0,104750.0,0.32429788]
[1750390585912,0.33131263,104760.0,104750.0,0.32729787]
[1750390586610,0.34556479,104760.0,104750.0,0.32729787]
[1750390587820,0.34556479,104760.0,104750.0,0.35869787]
[1750390598996,0.01425216,104760.0,104750.0,0.6900105]
[1750390599424,0.33131263,104770.0,104760.0,0.21954834]
[1750390599638,0.33131263,104770.0,104760.0,0.37389394]
[1750390600357,0.005036,104790.0,104770.0,0.26566822]
[1750390600586,5e-05,104790.0,104780.0,0.84997446]
[1750390600808,5e-05,104790.0,104780.0,1.17912706]
[1750390601031,5e-05,104790.0,104780.0,0.84781443]
[1750390601245,5e-05,104790.0,104780.0,0.87648642]
[1750390602543,5e-05,104790.0,104780.0,0.87648641]
[1750390602753,0.00205,104790.0,104780.0,0.87648641]
[1750390602966,5e-05,104790.0,104780.0,0.87748641]
[1750390603824,5e-05,104790.0,104780.0,0.90664719]
[1750390605166,5e-05,104790.0,104780.0,1.23795982]
[1750390605381,5e-05,104790.0,104780.0,1.23795981]
[1750390606957,5e-05,104790.0,104780.0,0.90618114]
[1750390610926,5e-05,104790.0,104780.0,0.57533455]
[1750390613835,5e-05,104790.0,104780.0,0.57533454]
[1750390618635,5e-05,104790.0,104780.0,0.34468291]
[1750390618636,0.33089659,104790.0,104780.0,0.34468291]
[1750390618855,0.36199659,104790.0,104780.0,0.47065091]
[1750390622171,0.34589659,104790.0,104780.0,0.47065091]
[1750390623466,0.33089659,104790.0,104780.0,0.47065091]
[1750390629797,0.33089659,104790.0,104780.0,0.47049091]
[1750390630223,0.33079659,104790.0,104780.0,0.47049091]
[1750390630426,0.32851205,104790.0,104780.0,0.47049091]
[1750390630663,0.39073241,104800.0,104790.0,0.21948548]
[1750390630871,0.72171403,104800.0,104790.0,0.21971103]
[1750390633090,0.73325546,104800.0,104790.0,0.21971103]
[1750390633334,0.73425546,104800.0,104790.0,0.21971103]
[1750390633768,0.72471403,104800.0,104790.0,0.21971103]
[1750390635989,0.73425537,104800.0,104790.0,0.21971103]
[1750390636377,0.72471403,104800.0,104790.0,0.21971103]
[1750390637392,0.73425546,104800.0,104790.0,0.21971103]
[1750390638399,0.74379708,104800.0,104790.0,0.21971103]
[1750390638608,0.73425546,104800.0,104790.0,0.21971103]
[1750390639041,1.06535877,104800.0,104790.0,0.21971103]
[1750390639257,1.0749002,104800.0,104790.0,0.21971103]
[1750390639473,1.084442,104800.0,104790.0,0.21971102]
[1750390639682,1.0749002,104800.0,104790.0,0.21971102]
[1750390639898,1.08444191,104800.0,104790.0,0.21971102]
[1750390641225,5.97374008,104800.0,104790.0,0.00022554]
[1750390641444,5.64276513,104800.0,104790.0,0.00022554]
[1750390641665,5.80276513,104800.0,104790.0,0.00022554]
[1750390643010,5.47186133,104800.0,104790.0,0.00022554]
[1750390643238,5.89818636,104800.0,104790.0,0.00022554]
[1750390643510,5.94004058,104800.0,104790.0,0.00022554]
[1750390643757,5.92107946,104800.0,104790.0,0.00022554]
[1750390644697,5.89818636,104800.0,104790.0,0.00022554]
[1750390646513,5.92107805,104800.0,104790.0,0.00022554]
[1750390646721,5.89818636,104800.0,104790.0,0.00022554]
[1750390649108,5.9210771,104800.0,104790.0,0.00022554]
[1750390652886,5.9497561,104800.0,104790.0,0.00022554]
[1750390656248,5.72885393,104800.0,104790.0,0.00022554]
[1750390656461,5.55521536,104800.0,104790.0,0.00022554]
[1750390658389,5.89521536,104800.0,104790.0,0.00022554]
[1750390664683,5.9181003,104800.0,104790.0,0.00022554]
[1750390664896,6.24921783,104800.0,104790.0,0.00022554]
[1750390665115,6.28877783,104800.0,104790.0,0.00022554]
[1750390665352,6.2977179,104800.0,104790.0,0.00022554]
[1750390666226,6.29772078,104800.0,104790.0,0.00022554]
[1750390670950,6.29772078,104800.0,104790.0,0.01592554]
[1750390671168,6.29772078,104800.0,104790.0,0.03142554]
[1750390673187,6.28877783,104800.0,104790.0,0.03142554]
[1750390673403,6.29772921,104800.0,104790.0,0.03142554]
[1750390676232,6.28877783,104800.0,104790.0,0.03142554]
[1750390678820,6.28881574,104800.0,104790.0,0.03142554]
[1750390685369,6.2977686,104800.0,104790.0,0.03142554]
[1750390686447,6.29777281,104800.0,104790.0,0.03142554]
[1750390686999,5.8122629,104800.0,104790.0,0.23307633]
[1750390687209,5.95692119,104800.0,104790.0,0.23307633]
[1750390687423,4.80536095,104800.0,104790.0,0.24261913]
[1750390687647,4.80536095,104800.0,104790.0,0.26170391]
[1750390687648,0.1822178,104800.0,104790.0,0.26170391]
[1750390687840,0.85389942,104800.0,104790.0,0.26170391]
[1750390688041,1.20344131,104800.0,104790.0,0.26170391]
[1750390688228,1.40382298,104800.0,104790.0,0.26170391]
[1750390688458,1.20344131,104800.0,104790.0,0.26170391]
[1750390688823,1.19389933,104800.0,104790.0,0.26170391]
[1750390689348,1.19389933,104800.0,104790.0,0.2617039]
[1750390689564,1.18435762,104800.0,104790.0,0.2617039]
[1750390690231,1.19389933,104800.0,104790.0,0.2617039]
[1750390690653,1.18435762,104800.0,104790.0,0.2617039]
[1750390690877,0.50313503,104800.0,104790.0,0.2617039]
[1750390691118,1.16527485,104800.0,104790.0,0.2617039]
[1750390693511,1.17481601,104800.0,104790.0,0.2617039]
[1750390694654,1.18435735,104800.0,104790.0,0.2617039]
[1750390695284,1.17481601,104800.0,104790.0,0.2617039]
[1750390695916,1.18435726,104800.0,104790.0,0.2617039]
[1750390696161,1.17481601,104800.0,104790.0,0.2617039]
[1750390698864,1.18435726,104800.0,104790.0,0.2617039]
[1750390699339,1.19389869,104800.0,104790.0,0.2617039]
[1750390699814,1.18435726,104800.0,104790.0,0.2617039]
[1750390700288,1.19389869,104800.0,104790.0,0.2617039]
[1750390702478,1.20344031,104800.0,104790.0,0.2617039]
[1750390702699,1.19389869,104800.0,104790.0,0.2617039]
[1750390703144,1.1938986,104800.0,104790.0,0.2617039]
[1750390706084,1.20344012,104800.0,104790.0,0.2617039]
[1750390706566,1.1938986,104800.0,104790.0,0.2617039]
[1750390707448,1.20344012,104800.0,104790.0,0.2617039]
[1750390708718,1.1938986,104800.0,104790.0,0.2617039]
[1750390708951,1.20344012,104800.0,104790.0,0.2617039]
[1750390709158,1.1938986,104800.0,104790.0,0.2617039]
[1750390709382,1.20344012,104800.0,104790.0,0.2617039]
[1750390709583,1.1938986,104800.0,104790.0,0.2617039]
[1750390711319,1.1938986,104800.0,104790.0,0.26170389]
[1750390712741,1.21298192,104800.0,104790.0,0.26170389]
[1750390712982,1.21298192,104800.0,104790.0,0.22228342]
[1750390712983,6.10237514,104800.0,104790.0,0.22228342]
[1750390713226,6.29292392,104800.0,104790.0,0.22228342]
[1750390713461,6.18811227,104800.0,104790.0,0.23182631]
[1750390713938,6.18811227,104800.0,104790.0,0.22228342]
[1750390714177,6.18811227,104800.0,104790.0,0.00022552]
[1750390714421,6.20800917,104800.0,104790.0,0.00022552]
[1750390714660,6.21100917,104800.0,104790.0,0.00022552]
[1750390716232,6.21300917,104800.0,104790.0,0.00022552]
[1750390718045,6.30827902,104800.0,104790.0,0.00022552]
[1750390718486,6.21300917,104800.0,104790.0,0.00022552]
[1750390721437,0.2004007,104790.0,104780.0,0.25025069]
[1750390721679,1.05662052,104790.0,104780.0,0.25025069]
[1750390722402,1.08469953,104790.0,104780.0,0.25025069]
[1750390722838,1.08469953,104790.0,104780.0,0.2299839]
[1750390722839,1.42469953,104790.0,104780.0,0.2299839]
[1750390723066,5.76164546,104790.0,104780.0,0.0309]
[1750390723739,5.76264546,104790.0,104780.0,0.0309]
[1750390724200,5.76364546,104790.0,104780.0,0.0309]
[1750390730075,0.56907154,104770.0,104760.0,0.21118308]
[1750390730337,1.23121136,104770.0,104760.0,0.21118308]
[1750390730563,1.23121136,104770.0,104760.0,0.23027378]
[1750390731682,1.23121136,104770.0,104760.0,0.23327378]
[1750390733050,1.23121136,104770.0,104760.0,0.23527378]
[1750390733292,1.23121136,104770.0,104760.0,0.26737378]
[1750390735597,1.22166747,104770.0,104760.0,0.23873818]
[1750390735829,5.44424586,104770.0,104760.0,0.23873818]
[1750390736035,5.43470115,104770.0,104760.0,0.03828]
[1750390736453,5.723971,104770.0,104760.0,0.0351]
[1750390736661,5.62870115,104770.0,104760.0,0.0351]
[1750390736871,5.62870115,104770.0,104760.0,0.0361]
[1750390737287,5.62870115,104770.0,104760.0,0.0351]
[1750390737533,5.62870115,104770.0,104760.0,0.0321]
[1750390737737,5.62970115,104770.0,104760.0,0.0331]
[1750390738127,5.62970115,104770.0,104760.0,0.0321]
[1750390738339,5.63070115,104770.0,104760.0,0.0321]
[1750390739978,5.63070115,104770.0,104760.0,0.03328]
[1750390740188,5.63070115,104770.0,104760.0,0.0321]
[1750390740604,5.79070115,104770.0,104760.0,0.0321]
[1750390745680,5.79070115,104770.0,104760.0,0.03328]
[1750390747721,5.12856133,104770.0,104760.0,0.22419256]
[1750390747931,5.79070115,104770.0,104760.0,0.22419256]
[1750390748144,5.79070115,104770.0,104760.0,0.03328]
[1750390749234,5.92497855,104770.0,104760.0,0.0321]
[1750390750124,5.88598008,104770.0,104760.0,0.0321]
[1750390752308,5.22384026,104770.0,104760.0,0.0321]
[1750390752526,5.88598008,104770.0,104760.0,0.0321]
[1750390752825,4.44212509,104760.0,104750.0,0.0318]
[1750390753086,5.25874491,104760.0,104750.0,0.24300366]
[1750390754216,5.25879203,104760.0,104750.0,0.24300366]
[1750390754657,5.25879203,104760.0,104750.0,0.24400366]
[1750390755105,5.25879203,104760.0,104750.0,0.23445731]
[1750390755322,5.2492465,104760.0,104750.0,0.23445731]
[1750390755545,5.2492465,104760.0,104750.0,0.24400375]
[1750390755769,5.2492465,104760.0,104750.0,0.24500375]
[1750390757317,5.34451635,104760.0,104750.0,0.23545731]
[1750390757580,5.2492465,104760.0,104750.0,0.23545731]
[1750390759199,5.2492465,104760.0,104750.0,0.24500375]
[1750390760791,5.2492465,104760.0,104750.0,0.04452653]
[1750390761256,6.01559534,104760.0,104750.0,0.0338]
[1750390761478,5.68452543,104760.0,104750.0,0.0338]
[1750390762127,5.68452543,104760.0,104750.0,0.0328]
[1750390762346,5.68452543,104760.0,104750.0,0.03298]
[1750390762800,5.68552543,104760.0,104750.0,0.03298]
[1750390763883,5.68652543,104760.0,104750.0,0.22391078]
[1750390764113,5.68652543,104760.0,104750.0,0.23345731]
[1750390764553,5.69607105,104760.0,104750.0,0.23345731]
[1750390764774,5.7450964,104760.0,104750.0,0.25254974]
[1750390764993,5.64981693,104760.0,104750.0,0.25254974]
[1750390765209,5.65936246,104760.0,104750.0,0.27164163]
[1750390765422,5.66890808,104760.0,104750.0,0.27164163]
[1750390765849,5.82890808,104760.0,104750.0,0.27164163]
[1750390767170,5.6284499,104760.0,104750.0,0.27164163]
[1750390769759,1.35818694,104760.0,104750.0,0.27164163]
[1750390769987,1.38682235,104760.0,104750.0,0.27164163]
[1750390770437,1.377277,104760.0,104750.0,0.27164163]
[1750390771523,1.03722988,104760.0,104750.0,0.27164163]
[1750390771738,1.04677523,104760.0,104750.0,0.27164163]
[1750390771962,1.03722988,104760.0,104750.0,0.27164163]
[1750390772391,1.04677514,104760.0,104750.0,0.27164163]
[1750390772622,1.05632049,104760.0,104750.0,0.27164163]
[1750390772868,0.89632049,104760.0,104750.0,0.27164163]
[1750390773293,0.90586593,104760.0,104750.0,0.27164163]
[1750390775292,1.24586593,104760.0,104750.0,0.27164163]
[1750390775938,1.24574593,104760.0,104750.0,0.27164163]
[1750390776397,1.05186593,104760.0,104750.0,0.27164163]
[1750390776623,1.24574593,104760.0,104750.0,0.27164163]
[1750390776840,1.43665849,104760.0,104750.0,0.27164163]
[1750390777055,1.24574593,104760.0,104750.0,0.27164163]
[1750390777687,1.24574657,104760.0,104750.0,0.27164163]
[1750390778348,1.05186657,104760.0,104750.0,0.27164163]
[1750390778551,1.24574657,104760.0,104750.0,0.27164163]
[1750390778769,1.23620104,104760.0,104750.0,0.27164163]
[1750390778978,1.2266556,104760.0,104750.0,0.27164163]
[1750390779420,1.23620104,104760.0,104750.0,0.27164163]
[1750390779698,1.23616104,104760.0,104750.0,0.27164163]
[1750390780330,1.24570657,104760.0,104750.0,0.27164163]
[1750390780760,1.24566657,104760.0,104750.0,0.27164163]
[1750390782219,1.43657913,104760.0,104750.0,0.27164163]
[1750390783061,1.23612104,104760.0,104750.0,0.27164163]
[1750390783895,1.24566657,104760.0,104750.0,0.27164163]
[1750390784312,1.05186657,104760.0,104750.0,0.27164163]